fUSD/lending_fUSD_20241223
["ID","MTS","AMOUNT","RATE_DAILY","PERIOD"]
[346390355,1734935436173,-537.52,0.00019178,2]
[346390356,1734935436182,-500.0,0.00019178,2]
[346390357,1734935436191,-500.0,0.00019178,2]
[346390358,1734935436201,-500.0,0.00019178,2]
[346390359,1734935436210,-500.0,0.00019178,2]
[346390360,1734935436219,-500.0,0.00019178,2]
[346390361,1734935436228,-500.0,0.00019178,2]
[346390362,1734935436240,-504.49580087,0.00019178,2]
[346390363,1734935436249,-500.0,0.00019178,2]
[346390364,1734935436258,-500.0,0.00019178,2]
[346390365,1734935436267,-500.0,0.00019178,2]
[346390366,1734935436277,-551.53,0.00019178,2]
[346390367,1734935436286,-500.0,0.00019178,2]
[346390368,1734935436295,-500.0,0.00019178,2]
[346390369,1734935436304,-500.0,0.00019178,2]
[346390370,1734935436313,-645.14,0.00019178,2]
[346390371,1734935436323,-500.0,0.00019178,2]
[346390372,1734935436332,-500.0,0.00019178,2]
[346390373,1734935436341,-500.0,0.00019178,2]
[346390374,1734935436350,-1180.05,0.00019178,2]
[346390375,1734935436359,-500.0,0.00019178,2]
[346390376,1734935436368,-500.0,0.00019178,2]
[346390377,1734935436377,-500.0,0.00019178,2]
[346390378,1734935436386,-500.0,0.00019178,2]
[346390379,1734935436396,-500.0,0.00019178,2]
[346390380,1734935436405,-500.0,0.00019178,2]
[346390381,1734935436415,-500.0,0.00019178,2]
[346390382,1734935436424,-500.0,0.00019178,2]
[346390383,1734935436433,-503.11193005,0.00019178,2]
[346390384,1734935436442,-500.0,0.00019178,2]
[346390385,1734935436451,-504.05965693,0.00019178,2]
[346390386,1734935436460,-500.0,0.00019178,2]
[346390387,1734935436469,-500.0,0.00019178,2]
[346390388,1734935436479,-500.0,0.00019178,2]
[346390389,1734935436490,-505.51084754,0.00019178,2]
[346390390,1734935436500,-500.0,0.00019178,2]
[346390391,1734935436509,-500.0,0.00019178,2]
[346390392,1734935436518,-500.0,0.00019178,2]
[346390393,1734935436527,-500.0,0.00019178,2]
[346390394,1734935436536,-881.13,0.00019178,2]
[346390395,1734935436548,-500.0,0.00019178,2]
[346390396,1734935436557,-832.62,0.00019178,2]
[346390397,1734935436566,-861.36,0.00019178,2]
[346390398,1734935436575,-500.0,0.00019178,2]
[346390399,1734935436584,-506.41423698,0.00019178,2]
[346390400,1734935436594,-500.0,0.00019178,2]
[346390401,1734935436603,-500.0,0.00019178,2]
[346390402,1734935436612,-512.25666657,0.00019178,2]
[346390403,1734935436623,-500.0,0.00019178,2]
[346390404,1734935436633,-500.0,0.00019178,2]
[346390405,1734935436642,-856.02,0.00019178,2]
[346390406,1734935436652,-500.0,0.00019178,2]
[346390407,1734935436661,-500.0,0.00019178,2]
[346390408,1734935436670,-500.0,0.00019178,2]
[346390409,1734935436680,-559.91,0.00019178,2]
[346390410,1734935436688,-500.0,0.00019178,2]
[346390411,1734935436697,-500.0,0.00019178,2]
[346390412,1734935436707,-698.24,0.00019178,2]
[346390413,1734935436716,-500.0,0.00019178,2]
[346390414,1734935436725,-500.0,0.00019178,2]
[346390415,1734935436736,-500.0,0.00019178,2]
[346390416,1734935436745,-500.0,0.00019178,2]
[346390417,1734935436755,-500.0,0.00019178,2]
[346390418,1734935436764,-500.0,0.00019178,2]
[346390419,1734935436773,-500.0,0.00019178,2]
[346390420,1734935436783,-500.0,0.00019178,2]
[346390421,1734935436793,-500.0,0.00019178,2]
[346390422,1734935436803,-500.0,0.00019178,2]
[346390423,1734935436812,-500.0,0.00019178,2]
[346390424,1734935436822,-500.0,0.00019178,2]
[346390425,1734935436831,-586.22,0.00019178,2]
[346390426,1734935436841,-500.0,0.00019178,2]
[346390427,1734935436851,-501.58377267,0.00019178,2]
[346390428,1734935436860,-503.48273001,0.00019178,2]
[346390429,1734935436870,-500.0,0.00019178,2]
[346390430,1734935436880,-500.0,0.00019178,2]
[346390431,1734935436889,-500.0,0.00019178,2]
[346390432,1734935436899,-500.0,0.00019178,2]
[346390433,1734935436908,-500.0,0.00019178,2]
[346390434,1734935436917,-500.0,0.00019178,2]
[346390435,1734935436927,-615.77,0.00019178,2]
[346390436,1734935436936,-509.7339575,0.00019178,2]
[346390437,1734935436945,-500.0,0.00019178,2]
[346390438,1734935436955,-500.0,0.00019178,2]
[346390439,1734935436964,-500.0,0.00019178,2]
[346390440,1734935436974,-500.0,0.00019178,2]
[346390441,1734935436985,-500.0,0.00019178,2]
[346390442,1734935436994,-500.0,0.00019178,2]
[346390443,1734935437004,-500.0,0.00019178,2]
[346390444,1734935437013,-500.0,0.00019178,2]
[346390445,1734935437022,-500.0,0.00019178,2]
[346390446,1734935437032,-496.20686576,0.00019178,2]
[346390447,1734935437042,-500.0,0.00019178,2]
[346390448,1734935437051,-500.0,0.00019178,2]
[346390450,1734935437253,-500.0,0.00019178,2]
[346390451,1734935437263,-837.51,0.00019178,2]
[346390452,1734935437273,-500.0,0.00019178,2]
[346390453,1734935437283,-500.0,0.00019178,2]
[346390454,1734935437293,-500.0,0.00019178,2]
[346390455,1734935437302,-500.0,0.00019178,2]
[346390456,1734935437312,-535.35,0.00019178,2]
[346390457,1734935437322,-809.61,0.00019178,2]
[346390458,1734935437332,-500.0,0.00019178,2]
[346390459,1734935437341,-555.32802271,0.00019178,2]
[346390460,1734935437351,-500.0,0.00019178,2]
[346390461,1734935437362,-500.0,0.00019178,2]
[346390462,1734935437371,-500.0,0.00019178,2]
[346390463,1734935437381,-500.0,0.00019178,2]
[346390464,1734935437391,-500.0,0.00019178,2]
[346390465,1734935437401,-500.0,0.00019178,2]
[346390466,1734935437411,-500.0,0.00019178,2]
[346390467,1734935437420,-500.0,0.00019178,2]
[346390468,1734935437430,-500.0,0.00019178,2]
[346390469,1734935437439,-500.0,0.00019178,2]
[346390470,1734935437449,-500.0,0.00019178,2]
[346390471,1734935437459,-500.0,0.00019178,2]
[346390472,1734935437468,-500.0,0.00019178,2]
[346390473,1734935437478,-500.0,0.00019178,2]
[346390474,1734935437487,-500.0,0.00019178,2]
[346390475,1734935437497,-500.0,0.00019178,2]
[346390476,1734935437506,-500.0,0.00019178,2]
[346390477,1734935437516,-500.0,0.00019178,2]
[346390478,1734935437525,-500.0,0.00019178,2]
[346390479,1734935437535,-500.0,0.00019178,2]
[346390480,1734935437546,-500.0,0.00019178,2]
[346390481,1734935437556,-500.0,0.00019178,2]
[346390482,1734935437566,-500.0,0.00019178,2]
[346390483,1734935437575,-500.0,0.00019178,2]
[346390484,1734935437584,-609.57294019,0.00019178,2]
[346390485,1734935437594,-500.0,0.00019178,2]
[346390486,1734935437603,-501.45,0.00019178,2]
[346390487,1734935437613,-500.0,0.00019178,2]
[346390488,1734935437622,-500.0,0.00019178,2]
[346390489,1734935437631,-500.0,0.00019178,2]
[346390490,1734935437641,-920.72,0.00019178,2]
[346390491,1734935437650,-500.0,0.00019178,2]
[346390492,1734935437659,-500.0,0.00019178,2]
[346390493,1734935437668,-500.0,0.00019178,2]
[346390494,1734935437677,-500.0,0.00019178,2]
[346390495,1734935437687,-500.0,0.00019178,2]
[346390496,1734935437696,-500.0,0.00019178,2]
[346390497,1734935437705,-503.1585354,0.00019178,2]
[346390498,1734935437714,-439.7522763,0.00019178,2]
[346390499,1734935437723,-500.0,0.00019178,2]
[346390500,1734935437733,-314.31646995,0.00019178,2]
[346390501,1734935437743,-500.0,0.00019178,2]
[346390502,1734935437752,-500.0,0.00019178,2]
[346390503,1734935437761,-500.0,0.00019178,2]
[346390504,1734935437770,-500.0,0.00019178,2]
[346390505,1734935437779,-500.0,0.00019178,2]
[346390506,1734935437788,-500.0,0.00019178,2]
[346390507,1734935437797,-799.19,0.00019178,2]
[346390509,1734935437807,-500.0,0.00019178,2]
[346390510,1734935437816,-500.0,0.00019178,2]
[346390511,1734935437825,-500.0,0.00019178,2]
[346390512,1734935437835,-292.52792158,0.00019178,2]
[346390513,1734935437844,-500.0,0.00019178,2]
[346390514,1734935437853,-500.0,0.00019178,2]
[346390515,1734935437862,-500.0,0.00019178,2]
[346390516,1734935437871,-669.9,0.00019178,2]
[346390517,1734935437881,-500.0,0.00019178,2]
[346390518,1734935437890,-500.0,0.00019178,2]
[346390520,1734935437899,-840.24,0.00019178,2]
[346390522,1734935437909,-500.0,0.00019178,2]
[346390523,1734935437919,-500.0,0.00019178,2]
[346390524,1734935437928,-500.0,0.00019178,2]
[346390526,1734935437938,-500.0,0.00019178,2]
[346390528,1734935437946,-500.0,0.00019178,2]
[346390530,1734935437955,-500.0,0.00019178,2]
[346390532,1734935437964,-624.93,0.00019178,2]
[346390534,1734935437973,-500.0,0.00019178,2]
[346390536,1734935437984,-500.0,0.00019178,2]
[346390538,1734935437999,-500.0,0.00019178,2]
[346390539,1734935438008,-711.25,0.00019178,2]
[346390540,1734935438017,-500.0,0.00019178,2]
[346390542,1734935438027,-500.0,0.00019178,2]
[346390543,1734935438036,-500.0,0.00019178,2]
[346390544,1734935438045,-500.0,0.00019178,2]
[346390545,1734935438055,-500.0,0.00019178,2]
[346390546,1734935438064,-500.0,0.00019178,2]
[346390547,1734935438074,-1077.26,0.00019178,2]
[346390548,1734935438083,-500.0,0.00019178,2]
[346390549,1734935438093,-500.0,0.00019178,2]
[346390550,1734935438102,-500.0,0.00019178,2]
[346390551,1734935438112,-560.91,0.00019178,2]
[346390552,1734935438121,-500.0,0.00019178,2]
[346390553,1734935438130,-500.0,0.00019178,2]
[346390554,1734935438139,-500.0,0.00019178,2]
[346390555,1734935438148,-500.0,0.00019178,2]
[346390556,1734935438158,-508.68782625,0.00019178,2]
[346390557,1734935438168,-517.30932268,0.00019178,2]
[346390558,1734935438177,-500.0,0.00019178,2]
[346390559,1734935438187,-500.0,0.00019178,2]
[346390560,1734935438196,-668.55,0.00019178,2]
[346390561,1734935438206,-500.0,0.00019178,2]
[346390562,1734935438215,-500.0,0.00019178,2]
[346390563,1734935438224,-7288.37,0.00019178,2]
[346390564,1734935438234,-500.0,0.00019178,2]
[346390565,1734935438243,-500.0,0.00019178,2]
[346390566,1734935438252,-500.0,0.00019178,2]
[346390567,1734935438261,-500.0,0.00019178,2]
[346390568,1734935438270,-593.59,0.00019178,2]
[346390569,1734935438279,-500.0,0.00019178,2]
[346390570,1734935438289,-500.0,0.00019178,2]
[346390571,1734935438299,-926.14,0.00019178,2]
[346390572,1734935438308,-500.0,0.00019178,2]
[346390573,1734935438317,-500.0,0.00019178,2]
[346390574,1734935438326,-500.0,0.00019178,2]
[346390575,1734935438335,-774.41,0.00019178,2]
[346390576,1734935438345,-500.0,0.00019178,2]
[346390577,1734935438356,-500.0,0.00019178,2]
[346390578,1734935438366,-500.0,0.00019178,2]
[346390579,1734935438375,-512.4,0.00019178,2]
[346390580,1734935438384,-500.0,0.00019178,2]
[346390581,1734935438394,-761.45,0.00019178,2]
[346390582,1734935438403,-500.0,0.00019178,2]
[346390583,1734935438413,-1147.32,0.00019178,2]
[346390584,1734935438422,-500.0,0.00019178,2]
[346390585,1734935438431,-1223.64,0.00019178,2]
[346390586,1734935438441,-500.0,0.00019178,2]
[346390587,1734935438450,-550.09,0.00019178,2]
[346390588,1734935438460,-659.31,0.00019178,2]
[346390589,1734935438469,-519.25722657,0.00019178,2]
[346390590,1734935438479,-500.0,0.00019178,2]
[346390591,1734935438490,-1762.37,0.00019178,2]
[346390592,1734935438500,-500.0,0.00019178,2]
[346390593,1734935438510,-500.0,0.00019178,2]
[346390594,1734935438520,-500.0,0.00019178,2]
[346390595,1734935438530,-500.0,0.00019178,2]
[346390596,1734935438539,-500.0,0.00019178,2]
[346390597,1734935438552,-1136.53,0.00019178,2]
[346390598,1734935438562,-1538.55,0.00019178,2]
[346390599,1734935438571,-500.0,0.00019178,2]
[346390600,1734935438580,-500.0,0.00019178,2]
[346390601,1734935438590,-500.0,0.00019178,2]
[346390602,1734935438600,-500.0,0.00019178,2]
[346390603,1734935438609,-500.0,0.00019178,2]
[346390604,1734935438619,-1338.24,0.00019178,2]
[346390605,1734935438629,-500.0,0.00019178,2]
[346390606,1734935438639,-500.0,0.00019178,2]
[346390607,1734935438648,-500.0,0.00019178,2]
[346390608,1734935438657,-797.76,0.00019178,2]
[346390609,1734935438666,-500.0,0.00019178,2]
[346390610,1734935438676,-500.0,0.00019178,2]
[346390611,1734935438685,-1914.22,0.00019178,2]
[346390612,1734935438695,-510.40643913,0.00019178,2]
[346390613,1734935438704,-1730.27,0.00019178,2]
[346390614,1734935438715,-500.0,0.00019178,2]
[346390615,1734935438724,-691.67,0.00019178,2]
[346390616,1734935438734,-1014.4,0.00019178,2]
[346390617,1734935438744,-500.0,0.00019178,2]
[346390618,1734935438753,-500.0,0.00019178,2]
[346390619,1734935438763,-500.0,0.00019178,2]
[346390620,1734935438772,-500.0,0.00019178,2]
[346390621,1734935438781,-2171.24,0.00019178,2]
[346390622,1734935438791,-1372.74,0.00019178,2]
[346390623,1734935438800,-693.96,0.00019178,2]
[346390624,1734935438809,-500.0,0.00019178,2]
[346390625,1734935438818,-500.03675781,0.00019178,2]
[346390626,1734935438827,-692.53,0.00019178,2]
[346390627,1734935438837,-1493.52,0.00019178,2]
[346390628,1734935438846,-1290.13,0.00019178,2]
[346390629,1734935438855,-500.0,0.00019178,2]
[346390630,1734935438865,-500.0,0.00019178,2]
[346390631,1734935438875,-826.62,0.00019178,2]
[346390632,1734935438884,-500.0,0.00019178,2]
[346390633,1734935438893,-8616.06,0.00019178,2]
[346390634,1734935438902,-500.0,0.00019178,2]
[346390635,1734935438912,-1403.86,0.00019178,2]
[346390636,1734935438921,-500.0,0.00019178,2]
[346390637,1734935438930,-2490.51,0.00019178,2]
[346390638,1734935438939,-500.0,0.00019178,2]
[346390639,1734935438949,-500.0,0.00019178,2]
[346390640,1734935438958,-1479.03,0.00019178,2]
[346390641,1734935438968,-500.0,0.00019178,2]
[346390642,1734935438977,-500.0,0.00019178,2]
[346390643,1734935438988,-500.0,0.00019178,2]
[346390644,1734935438998,-2459.25,0.00019178,2]
[346390645,1734935439008,-500.0,0.00019178,2]
[346390646,1734935439018,-896.21,0.00019178,2]
[346390647,1734935439027,-849.22,0.00019178,2]
[346390648,1734935439037,-500.0,0.00019178,2]
[346390649,1734935439047,-500.0,0.00019178,2]
[346390650,1734935439056,-12006.65,0.00019178,2]
[346390651,1734935439065,-500.0,0.00019178,2]
[346390652,1734935439076,-3580.17,0.00019178,2]
[346390653,1734935439086,-1673.65,0.00019178,2]
[346390654,1734935439096,-910.12,0.00019178,2]
[346390655,1734935439106,-503.25702761,0.00019178,2]
[346390656,1734935439115,-500.0,0.00019178,2]
[346390657,1734935439125,-3753.12,0.00019178,2]
[346390658,1734935439134,-500.0,0.00019178,2]
[346390659,1734935439144,-500.0,0.00019178,2]
[346390660,1734935439153,-500.0,0.00019178,2]
[346390661,1734935439162,-676.2,0.00019178,2]
[346390662,1734935439172,-25979.47,0.00019178,2]
[346390663,1734935439182,-500.0,0.00019178,2]
[346390664,1734935439191,-899.71,0.00019178,2]
[346390665,1734935439201,-1767.55,0.00019178,2]
[346390666,1734935439211,-500.0,0.00019178,2]
[346390667,1734935439220,-598.23,0.00019178,2]
[346390668,1734935439229,-1387.33,0.00019178,2]
[346390669,1734935439240,-500.0,0.00019178,2]
[346390670,1734935439249,-500.0,0.00019178,2]
[346390671,1734935439259,-500.0,0.00019178,2]
[346390672,1734935439268,-6393.21,0.00019178,2]
[346390673,1734935439277,-555.3,0.00019178,2]
[346390674,1734935439287,-1219.07,0.00019178,2]
[346390675,1734935439296,-500.0,0.00019178,2]
[346390676,1734935439306,-1390.74,0.00019178,2]
[346390677,1734935439315,-372.56614657,0.00019178,2]
[346390678,1734935439324,-2174.84,0.00019178,2]
[346390679,1734935439333,-25.1947288,0.00019178,2]
[346390680,1734935440316,-151.75612178,0.00018795,2]
[346390681,1734935440325,-151.75612178,0.00019014,2]
[346390682,1734935440334,-474.8052712,0.00019178,2]
[346390683,1734935440343,-500.0,0.00019178,2]
[346390684,1734935440352,-4298.7,0.00019178,2]
[346390685,1734935440361,-500.0,0.00019178,2]
[346390686,1734935440370,-500.0,0.00019178,2]
[346390687,1734935440379,-1036.54,0.00019178,2]
[346390688,1734935440388,-500.0,0.00019178,2]
[346390689,1734935440397,-518.25,0.00019178,2]
[346390690,1734935440407,-503.7271575,0.00019178,2]
[346390691,1734935440415,-500.0,0.00019178,2]
[346390692,1734935440424,-500.0,0.00019178,2]
[346390693,1734935440434,-1426.01,0.00019178,2]
[346390694,1734935440443,-7912.05,0.00019178,2]
[346390695,1734935440452,-1164.66,0.00019178,2]
[346390696,1734935440461,-500.0,0.00019178,2]
[346390697,1734935440470,-500.0,0.00019178,2]
[346390698,1734935440479,-2751.97,0.00019178,2]
[346390699,1734935440489,-500.0,0.00019178,2]
[346390700,1734935440498,-500.0,0.00019178,2]
[346390701,1734935440508,-1449.49,0.00019178,2]
[346390702,1734935440516,-1407.71,0.00019178,2]
[346390703,1734935440526,-500.0,0.00019178,2]
[346390704,1734935440535,-1945.88,0.00019178,2]
[346390705,1734935440546,-500.0,0.00019178,2]
[346390706,1734935440555,-833.71,0.00019178,2]
[346390707,1734935440563,-500.0,0.00019178,2]
[346390708,1734935440572,-500.0,0.00019178,2]
[346390709,1734935440581,-500.0,0.00019178,2]
[346390710,1734935440591,-2470.0,0.00019178,2]
[346390711,1734935440600,-500.0,0.00019178,2]
[346390712,1734935440609,-500.0,0.00019178,2]
[346390713,1734935440618,-2436.65,0.00019178,2]
[346390714,1734935440627,-500.0,0.00019178,2]
[346390715,1734935440638,-2846.41,0.00019178,2]
[346390716,1734935440648,-595.80431462,0.00019178,2]
[346390717,1734935440657,-500.0,0.00019178,2]
[346390718,1734935440666,-1171.61,0.00019178,2]
[346390719,1734935440676,-500.0,0.00019178,2]
[346390720,1734935440685,-1008.63,0.00019178,2]
[346390721,1734935440694,-501.55125334,0.00019178,2]
[346390722,1734935440703,-1028.27,0.00019178,2]
[346390723,1734935440713,-5226.58,0.00019178,2]
[346390724,1734935440722,-1641.41,0.00019178,2]
[346390725,1734935440732,-821.66,0.00019178,2]
[346390726,1734935440742,-500.0,0.00019178,2]
[346390727,1734935440752,-500.0,0.00019178,2]
[346390728,1734935440761,-603.09,0.00019178,2]
[346390729,1734935440771,-2169.08,0.00019178,2]
[346390730,1734935440780,-513.17798413,0.00019178,2]
[346390731,1734935440789,-500.0,0.00019178,2]
[346390732,1734935440799,-501.79210731,0.00019178,2]
[346390733,1734935440807,-500.0,0.00019178,2]
[346390734,1734935440817,-3737.79,0.00019178,2]
[346390735,1734935440826,-500.0,0.00019178,2]
[346390736,1734935440835,-500.0,0.00019178,2]
[346390737,1734935440845,-500.0,0.00019178,2]
[346390738,1734935440854,-2023.26,0.00019178,2]
[346390739,1734935440864,-170.18329403,0.00019178,2]
[346390740,1734935440873,-2114.27,0.00019178,2]
[346390741,1734935440883,-500.0,0.00019178,2]
[346390742,1734935440893,-500.0,0.00019178,2]
[346390743,1734935440903,-456.83220333,0.00019178,2]
[346390744,1734935440928,-2424.87779667,0.00019178,2]
[346390745,1734935440937,-1012.11,0.00019178,2]
[346390746,1734935440947,-299.08753253,0.00019178,2]
[346390747,1734935440957,-1767.64,0.00019178,2]
[346390748,1734935440967,-3548.69,0.00019178,2]
[346390749,1734935440978,-1400.33,0.00019178,2]
[346390750,1734935440987,-500.0,0.00019178,2]
[346390751,1734935440998,-500.0,0.00019178,2]
[346390752,1734935441007,-500.0,0.00019178,2]
[346390753,1734935441017,-512.8289814,0.00019178,2]
[346390754,1734935441026,-6730.92,0.00019178,2]
[346390755,1734935441036,-597.1,0.00019178,2]
[346390756,1734935441045,-500.0,0.00019178,2]
[346390757,1734935441055,-853.63,0.00019178,2]
[346390758,1734935441064,-500.0,0.00019178,2]
[346390759,1734935441073,-500.0,0.00019178,2]
[346390760,1734935441083,-500.0,0.00019178,2]
[346390761,1734935441092,-546.19374013,0.00019178,2]
[346390762,1734935441101,-500.0,0.00019178,2]
[346390763,1734935441111,-2677.67997311,0.00019178,2]
[346390764,1734935441122,-471.65002689,0.00019178,2]
[346390765,1734935441132,-500.0,0.00019178,2]
[346390766,1734935441141,-539.92,0.00019178,2]
[346390767,1734935441150,-500.0,0.00019178,2]
[346390768,1734935441160,-1647.33,0.00019178,2]
[346390769,1734935441169,-500.0,0.00019178,2]
[346390770,1734935441179,-500.0,0.00019178,2]
[346390771,1734935441189,-2411.79,0.00019178,2]
[346390772,1734935441198,-500.0,0.00019178,2]
[346390773,1734935441208,-500.0,0.00019178,2]
[346390774,1734935441218,-3621.02,0.00019178,2]
[346390775,1734935441227,-500.0,0.00019178,2]
[346390776,1734935441238,-1361.07,0.00019178,2]
[346390777,1734935441247,-750.97,0.00019178,2]
[346390778,1734935441258,-440.11714738,0.00019178,2]
[346390779,1734935441282,-202.36285262,0.00019178,2]
[346390780,1734935441292,-451.70169573,0.00019178,2]
[346390781,1734935441303,-346.23828219,0.00019178,2]
[346390782,1734935441315,-1910.04,0.00019178,2]
[346390783,1734935441326,-1360.72366522,0.00019178,2]
[346390784,1734935441695,-1161.77635686,0.00019178,2]
[346390785,1734935441704,-502.86,0.00019178,2]
[346390786,1734935441713,-500.0,0.00019178,2]
[346390787,1734935441724,-500.0,0.00019178,2]
[346390788,1734935441733,-3928.11202337,0.00019178,2]
[346390789,1734935441781,-500.0,0.00019177,2]
[346390790,1734935441792,-3399.30797663,0.00019178,2]
[346390791,1734935441801,-504.08427052,0.00019178,2]
[346390792,1734935441811,-707.87162823,0.00019178,2]
[346390800,1734935442931,-500.0,0.00019177,2]
[346390802,1734935442940,-427.62819899,0.00019177,2]
[346390804,1734935442949,-47.70837177,0.00019178,2]
[346390806,1734935442959,-673.46342924,0.00019178,2]
[346390808,1734935442970,-500.0,0.00019178,2]
[346390810,1734935442981,-1613.03388438,0.00019178,2]
[346390811,1734935442994,-172.78268638,0.00019178,2]
[346390812,1734935443004,-500.0,0.00019178,2]
[346390813,1734935443013,-629.40136372,0.00019178,2]
[346390815,1734935443026,-120.84863628,0.00019178,2]
[346390816,1734935443036,-1648.11,0.00019178,2]
[346390818,1734935443045,-500.0,0.00019178,2]
[346390820,1734935443055,-500.0,0.00019178,2]
[346390822,1734935443064,-500.0,0.00019178,2]
[346390824,1734935443074,-773.64,0.00019178,2]
[346390825,1734935443084,-500.0,0.00019178,2]
[346390826,1734935443094,-500.0,0.00019178,2]
[346390827,1734935443104,-552.16,0.00019178,2]
[346390828,1734935443114,-500.0,0.00019178,2]
[346390829,1734935443124,-1659.43,0.00019178,2]
[346390830,1734935443136,-500.0,0.00019178,2]
[346390831,1734935443156,-500.0,0.00019178,2]
[346390832,1734935443165,-956.6,0.00019178,2]
[346390833,1734935443175,-626.6,0.00019178,2]
[346390834,1734935443184,-626.6,0.00019178,2]
[346390835,1734935443194,-500.0,0.00019178,2]
[346390836,1734935443203,-500.0,0.00019178,2]
[346390837,1734935443213,-671.94,0.00019178,2]
[346390838,1734935443222,-500.0,0.00019178,2]
[346390839,1734935443232,-500.0,0.00019178,2]
[346390840,1734935443245,-500.0,0.00019178,2]
[346390841,1734935443254,-72.74739523,0.00019178,2]
[346390842,1734935443266,-427.25260477,0.00019178,2]
[346390843,1734935443275,-1018.89,0.00019178,2]
[346390844,1734935443285,-935.94724201,0.00019178,2]
[346390845,1734935443301,-448.27275799,0.00019178,2]
[346390846,1734935443310,-500.0,0.00019178,2]
[346390847,1734935443319,-500.0,0.00019178,2]
[346390848,1734935443328,-500.0,0.00019178,2]
[346390849,1734935443338,-500.0,0.00019178,2]
[346390850,1734935443347,-392.00649263,0.00019178,2]
[346390851,1734935443357,-502.37379998,0.00019178,2]
[346390852,1734935443366,-500.0,0.00019178,2]
[346390853,1734935443375,-500.0,0.00019178,2]
[346390854,1734935443384,-606.65,0.00019178,2]
[346390855,1734935443394,-500.0,0.00019178,2]
[346390856,1734935443403,-500.0,0.00019178,2]
[346390857,1734935443412,-500.0,0.00019178,2]
[346390858,1734935443422,-500.0,0.00019178,2]
[346390859,1734935443431,-784.24,0.00019178,2]
[346390860,1734935443440,-500.0,0.00019178,2]
[346390861,1734935443449,-663.59,0.00019178,2]
[346390862,1734935443459,-758.25,0.00019178,2]
[346390863,1734935443468,-500.0,0.00019178,2]
[346390864,1734935443478,-615.07042431,0.00019178,2]
[346390865,1734935443487,-1305.24,0.00019178,2]
[346390866,1734935443501,-500.0,0.00019178,2]
[346390867,1734935443510,-500.0,0.00019178,2]
[346390868,1734935443520,-500.0,0.00019178,2]
[346390869,1734935443529,-513.09224309,0.00019178,2]
[346390870,1734935443539,-500.0,0.00019178,2]
[346390871,1734935443551,-517.87963685,0.00019178,2]
[346390872,1734935443560,-500.0,0.00019178,2]
[346390873,1734935443569,-500.0,0.00019178,2]
[346390874,1734935443578,-500.0,0.00019178,2]
[346390875,1734935443588,-201.47,0.00019178,2]
[346390876,1734935443596,-200.75,0.00019178,2]
[346390877,1734935443605,-151.75612178,0.00019205,2]
[346390878,1734935443615,-2901.49058151,0.00019261,2]
[346390879,1734935443627,-2901.49058151,0.00019352,2]
[346390880,1734935443636,-191.89978734,0.00019352,2]
[346390881,1734935443645,-152.0,0.00019388,3]
[346390882,1734935443654,-151.75612178,0.00019397,2]
[346390883,1734935443664,-9850.47681093,0.000194,5]